{"text_format":"1","workbook":"xlsx","n_sheets":3,"sheets":["Application Form","Data","Source"],"not_rendered":{"charts":0,"images":1,"macros":1,"external_links":0,"defined_names":1,"comments":0,"pivot_tables":0},"unopened":[],"bounds":{"document_bytes":16777216,"sheet_cells":100000,"rows_first":2000,"rows_last":500,"rows_between":2000,"halvings":0,"cell_chars":16384,"cell_head_chars":4096},"cells_cut":0,"cells_raw":0,"read":"whole","date_system":"1900"}

{"sheet":"Application Form","index":0,"n_rows":132,"n_cols":18,"rows_kept":132,"cut":false,"hidden":false,"merged":[[31,0,32,0],[105,2,105,14],[101,0,101,14],[98,0,99,14],[82,1,82,14],[83,1,83,14],[85,2,86,13],[54,1,54,3],[50,1,50,14],[52,1,52,3],[52,9,52,14],[52,5,52,8],[75,1,75,4],[75,5,75,14],[76,1,76,4],[76,5,76,14],[131,0,131,14],[107,2,107,14],[109,2,109,14],[105,0,110,0],[126,0,128,2],[126,9,128,14],[115,0,123,14],[95,0,95,14],[78,1,78,4],[78,5,79,14],[63,1,63,6],[67,1,68,14],[73,1,73,4],[73,5,73,14],[74,1,74,4],[74,5,74,14],[70,1,71,14],[77,1,77,4],[77,5,77,14],[9,1,9,2],[19,1,19,3],[19,4,19,14],[9,4,9,7],[11,4,11,7],[9,8,9,14],[11,8,11,14],[13,1,13,6],[17,11,17,14],[11,1,11,3],[17,1,17,6],[17,7,17,10],[21,1,21,14],[23,1,23,3],[15,11,15,14],[15,7,15,10],[15,1,15,6],[23,9,23,14],[23,5,23,8],[36,0,40,14],[42,1,42,2],[56,0,58,0],[48,1,48,6],[48,7,48,8],[48,9,48,14],[56,1,56,14],[42,9,42,14],[58,9,58,14],[58,1,58,3],[42,5,42,8],[46,1,46,6],[46,7,46,8],[46,9,46,14],[44,1,44,14],[54,8,54,14],[25,1,25,14],[27,1,27,6],[27,7,27,8],[27,9,27,14],[32,8,32,14],[32,2,32,6],[29,2,29,6],[29,8,29,14]]}
[]
[]
[]
[]
["TUM Asia Summer School Application Form 2018 (Individual Sign-Up Form) "]
["\"The Next Industrie 4.0 Frontier: Managing Smart Systems, Disruptive Innovation & Digital Networks\""]
[]
["A. Applicant Information"]
[]
["Salutation",null,null,null,"Name as per Passport"]
[]
["Gender",null,null,null,"NRIC/ FIN Number"]
[]
["E-mail Address",null,null,null,null,null,null,"Date of Birth",null,null,null,"dd","mm","yyyy",null,null,null,{"$f":"IF(OR($L$14=\"dd\",$L$14=\"\",$M$14=\"mm\",$M$14=\"\",$N$14=\"yyyy\",$N$14=\"\"),\"Please enter a valid date of birth.\",\"\")","v":"Please enter a valid date of birth."}]
[]
["Race",null,null,null,null,null,null,"If others, please specify"]
[]
["Nationality",null,null,null,null,null,null,"If others, please specify"]
[]
["Resident Status in Singapore"]
[]
["Mailing Address in Singapore"]
[]
["Postal Code",null,null,null,null,"Contact No. (Handphone)"]
[]
["Company Name"]
[]
["Department",null,null,null,null,null,null,"Designation"]
[]
["Sponsorship",null,"Self-Sponsored*",null,null,null,null,null,"Company-Sponsored",null,null,null,null,null,null,null,null,{"$f":"IF(AND($B$30=\"√\",$H$30=\"√\"),\"Please select only one of the options.\",\"\")","v":""}]
[]
["*If Self-Sponsored, are you currently"]
[null,null,"Employed",null,null,null,null,null,"Unemployed",null,null,null,null,null,null,null,null,{"$f":"IF(AND($B$33=\"√\",$H$33=\"√\"),\"Please select only one of the options.\",\"\")","v":""}]
[]
[]
["B. Human Resource Department Information (For Employed Applicants)"]
["Please fill in this section with your Human Resource Department information if your company is paying for this programme.\n\nThe employer understands that he/ she will be responsible for financing this programme and will ensure that payment will be made on time. Should the employee terminate the course due to any circumstance, the employer will still be responsible for the complete payment of fees."]
[]
[]
[]
[]
[]
["Salutation",null,null,null,null,"Name"]
[]
["Company Name"]
[]
["Department",null,null,null,null,null,null,"Designation"]
[]
["Contact No. ",null,null,null,null,null,null,"Fax No."]
[]
["Office Address"]
[]
["Postal Code",null,null,null,null,"E-mail Address"]
[]
["Set-up of Company"]
[]
["Billing Address (if different from above)"]
[]
[null,null,null,null,null,null,null,"Postal Code"]
[]
[]
["C. Payment Details"]
[]
["I am paying by",null,null,null,null,null,null,null,null,null,null,null,null,null,null,null,null,{"$f":"IF($B64=\"\",\"Please select your choice of payment mode.\",\"\")","v":"Please select your choice of payment mode."}]
[]
["Modes of Payment"]
[]
["1. Local Cheque or Bank Draft","Please send the crossed cheque payable to German Institute of Science and Technology - \nTUM Asia Pte. Ltd. and mail it to our office at:- "]
[]
[]
[null,"Attn: Office of Executive Development\n510 Dover Road, #05-01 SIT@SP Building, Singapore 139660"]
[]
[]
["2. Telegraphic Transfer","Recipient Name",null,null,null,"German Inst of Sci&Tech-TUM Asia PL"]
[null,"Bank Name",null,null,null,"OCBC Bank Singapore"]
[null,"Branch Code-Account No.",null,null,null,"591-490289001"]
[null,"Bank Code",null,null,null,7339]
[null,"SWIFT Code",null,null,null,"OCBCSGSG"]
[null,"Bank Address",null,null,null,"460 North Bridge Road, #01-00 OCBC Bank North Branch\nSingapore 188734"]
[]
[]
[]
[null,"COMPULSORY FOR TELEGRAPHIC TRANSFERS:"]
[null,"Please indicate the following in the remarks section:"]
[]
[null,null,{"$f":"IF($I$10=\"\",\"<FULL NAME> - SS2018\",UPPER($I$10)&\" - \"&\"SS2018\")","v":"<FULL NAME> - SS2018"}]
[]
[]
[]
[]
[]
["D. List of Supporting Documents"]
[]
["You must "]
[]
["i.i complete and send a copy of this Excel file to exd@tum-asia.edu.sg; and"]
["ii. submit all the documents listed below to our office at:-"]
[]
["Attention: Office of Executive Development\n510 Dover Road, #05-01 SIT@SP Building, Singapore 139660"]
[]
[]
["Your application will not be complete without the supporting documents."]
[]
["Compulsory Documents:"]
[]
["Please complete the checklist accordingly",null,"1. Printed and Signed Application Form",null,null,null,null,null,null,null,null,null,null,null,null,null,null,{"$f":"IF($B106<>\"√\",\"Please print, sign and submit this application form.\",\"\")","v":"Please print, sign and submit this application form."}]
[]
[null,null,"2. Updated Curriculum Vitae/ Resume",null,null,null,null,null,null,null,null,null,null,null,null,null,null,{"$f":"IF($B108<>\"√\",\"Please submit a resume.\",\"\")","v":"Please submit a resume."}]
[]
[null,null,"3. Photocopy of NRIC (for Singaporeans and PRs) or Passport Biodata Page (for non-Singaporeans)",null,null,null,null,null,null,null,null,null,null,null,null,null,null,{"$f":"IF($B110<>\"√\",\"Please submit a photocopy of your identification document.\",\"\")","v":"Please submit a photocopy of your identification document."}]
[]
[]
[]
[]
["E. Declaration"]
["I declare that the information and supporting documents that I have submitted in and with this application are true and complete. I understand that the results of my application are subject to the decision of the German Institute of Science and Technology – TUM Asia Pte Ltd \n(TUM Asia) and that TUM Asia’s decision is final.\n\nI acknowledge that any failure on my part to disclose true and relevant information and complete academic records or to supply the necessary information may result in the termination of my application.\n\nI hereby declare that I have read and understood all information and instructions provided by TUM Asia. I fully accept and agree to obey all policies, rules and regulations of TUM Asia, and also official instructions from TUM Asia staff."]
[]
[]
[]
[]
[]
[]
[]
[]
[]
[]
["_____________________________________"]
[]
[]
["Signature of Applicant",null,null,null,null,null,null,null,null,"Date"]
[]
["For more information, please contact Ms Jasmine Sim (Office of Executive Development) on +65 6777 7407 or at exd@tum-asia.edu.sg."]

{"sheet":"Data","index":1,"n_rows":3,"n_cols":37,"rows_kept":3,"cut":false,"hidden":true,"merged":[[0,33,0,36],[0,19,0,31],[0,3,0,18]]}
[null,null,null,"A. Personal Details",null,null,null,null,null,null,null,null,null,null,null,null,null,null,null,"B. Company Details",null,null,null,null,null,null,null,null,null,null,null,null,"C. Payment \nDetails","G. Documents"]
["Choice of Course","Salutation","Name as per Passport","A. Gender","A. NRIC/ FIN Number","A. Email Address","A. DOB","A. Race","A. Race others","A. Nationality","A. Nationality Others","A. Resident Status","A. Mailing Address","A. Postal Code","A. Handphone No.","A. Self-Sponsored","A. Company Sponsored","A. If Self-Sponsored, employed","A. If Self-Sponsored, unemployed","B. Salutation","B. Name","B. Company Name","B. Department","B. Designation","B. Contact No.","B. Fax No.","B. Office Address","B. Postal Code","B. Email Address","B. Set-up of Company","B. Billing Address (if different)","B. Billing Postal Code","F. Mode of Payment","G. Application Form","G. CV","G. NRIC/ Passport","G. English Certificate"]
[null,{"$f":"IF('Application Form'!$B$10=\"\",\"\",'Application Form'!$B$10)","v":""},{"$f":"IF('Application Form'!$I$10=\"\",\"\",'Application Form'!$I$10)","v":""},{"$f":"IF('Application Form'!$B$12=\"\",\"\",'Application Form'!$B$12)","v":""},{"$f":"IF('Application Form'!$I$12=\"\",\"\",'Application Form'!$I$12)","v":""},{"$f":"IF('Application Form'!$B$14=\"\",\"\",'Application Form'!$B$14)","v":""},{"$f":"DATE('Application Form'!$N$14,'Application Form'!$M$14,'Application Form'!$L$14)","v":{"$error":"#VALUE!"}},{"$f":"IF('Application Form'!$B$16=\"\",\"\",'Application Form'!$B$16)","v":""},{"$f":"IF('Application Form'!$L$16=\"\",\"\",'Application Form'!$L$16)","v":""},{"$f":"IF('Application Form'!$B$18=\"\",\"\",'Application Form'!$B$18)","v":""},{"$f":"IF('Application Form'!$L$18=\"\",\"\",'Application Form'!$L$18)","v":""},{"$f":"IF('Application Form'!$B$20=\"\",\"\",'Application Form'!$B$20)","v":""},{"$f":"IF('Application Form'!$B$22=\"\",\"\",'Application Form'!$B$22)","v":""},{"$f":"IF('Application Form'!$B$24=\"\",\"\",'Application Form'!$B$24)","v":""},{"$f":"IF('Application Form'!$J$24=\"\",\"\",'Application Form'!$J$24)","v":""},{"$f":"IF('Application Form'!$B$30<>\"\",\"Yes\",\"\")","v":""},{"$f":"IF('Application Form'!$H$30<>\"\",\"Yes\",\"\")","v":""},{"$f":"IF('Application Form'!$B$33<>\"\",\"Yes\",\"\")","v":""},{"$f":"IF('Application Form'!$H$33<>\"\",\"Yes\",\"\")","v":""},{"$f":"IF('Application Form'!$B$43=\"\",\"\",'Application Form'!$B$43)","v":""},{"$f":"IF('Application Form'!$J$43=\"\",\"\",'Application Form'!$J$43)","v":""},{"$f":"IF('Application Form'!$B$45=\"\",\"\",'Application Form'!$B$45)","v":""},{"$f":"IF('Application Form'!$B$47=\"\",\"\",'Application Form'!$B$47)","v":""},{"$f":"IF('Application Form'!$J$47=\"\",\"\",'Application Form'!$J$47)","v":""},{"$f":"IF('Application Form'!$B$49=\"\",\"\",'Application Form'!$B$49)","v":""},{"$f":"IF('Application Form'!$J$49=\"\",\"\",'Application Form'!$J$49)","v":""},{"$f":"IF('Application Form'!$B$51=\"\",\"\",'Application Form'!$B$51)","v":""},{"$f":"IF('Application Form'!$B$53=\"\",\"\",'Application Form'!$B$53)","v":""},{"$f":"IF('Application Form'!$J$53=\"\",\"\",'Application Form'!$J$53)","v":""},{"$f":"IF('Application Form'!$B$55=\"\",\"\",'Application Form'!$B$55)","v":""},{"$f":"IF('Application Form'!$B$57=\"\",\"\",'Application Form'!$B$57)","v":""},{"$f":"IF('Application Form'!$J$59=\"\",\"\",'Application Form'!$J$59)","v":""},{"$f":"IF('Application Form'!$B$64=\"\",\"\",'Application Form'!$B$64)","v":""},{"$f":"IF('Application Form'!$B$106=\"\",\"\",'Application Form'!$B$106)","v":""},{"$f":"IF('Application Form'!$B$108=\"\",\"\",'Application Form'!$B$108)","v":""},{"$f":"IF('Application Form'!$B$110=\"\",\"\",'Application Form'!$B$110)","v":""},{"$f":"IF('Application Form'!#REF!=\"\",\"\",'Application Form'!#REF!)","v":{"$error":"#REF!"}}]

{"sheet":"Source","index":2,"n_rows":193,"n_cols":16,"rows_kept":193,"cut":false,"hidden":true,"merged":[]}
["Choice of Graduate Diploma Course ","Short Form","Salutation","Gender","Race","Nationality","dd","mm","yyyy","Type of Industry","Resident Status","Yes No","Tick","Set-up of Company","Payment","Education"]
["Professional Certificate in Pharmaceutical Science","PDC1","Dr","Male","Chinese","Afghan","dd","mm","yyyy","Accounting","Citizen/ PR","Yes",null,"SME","Bank Draft","PhD"]
["Professional Certificate in Clinical Laboratory Science","PDC2","Mr","Female","Malay","Albanian","01","01",2016,"Aerospace","Employment Pass","No","√","Non-SME","Company Sponsored","Master Degree"]
["Graduate Diploma in Pharmaceutical and Clinical Laboratory Sciences","GD1","Mrs",null,"Indian","Algerian","02","02",2015,"Automotive","Work Permit",null,"N/A",null,"Local Cheque","Bachelor Degree"]
["Modular Certificate in 'Drugs Actions, Discovery & Development'","MC1","Ms",null,"Others","American","03","03",2014,"Business","Dependent Pass",null,null,null,"Telegraphic Transfer","GCE A Level"]
["Modular Certificate in 'Pharmaceutical Manufacturing Processes & Systems'","MC2",null,null,null,"Andorran","04","04",2013,"Chemical","Social Visit Pass",null,null,null,null,"GCE N Level"]
["Modular Certificate in 'Pharmaceutical Regulatory Affairs & Health Economics'","MC3",null,null,null,"Angolan","05","05",2012,"Clean Energy","Letter of Consent",null,null,null,null,"GCE O Level"]
["Modular Certificate in 'Clinical Laboratory Testing'","MC4",null,null,null,"Antiguan/ Barbudan","06","06",2011,"Education",null,null,null,null,null,"Polytechnic Diploma"]
["Modular Certificate in 'Standards & Quality Systems'","MC5",null,null,null,"Argentinian","07","07",2010,"Electronics",null,null,null,null,null,"Others"]
["Modular Certificate in 'Biosafety & Biosecurity'","MC6",null,null,null,"Armenian","08","08",2009,"Energy"]
[null,null,null,null,null,"Australian","09","09",2008,"Environment and Water"]
[null,null,null,null,null,"Austrian",10,10,2007,"Finance & Banking"]
[null,null,null,null,null,"Azerbaijani",11,11,2006,"Healthcare"]
[null,null,null,null,null,"Bahamian",12,12,2005,"Infocomm Services"]
[null,null,null,null,null,"Bahraini",13,null,2004,"Logistics and Supply Chain Management"]
[null,null,null,null,null,"Bangladeshi",14,null,2003,"Marine and Offshore Engineering"]
[null,null,null,null,null,"Barbadian",15,null,2002,"Media and Entertainment"]
[null,null,null,null,null,"Basotho",16,null,2001,"Medical Technology"]
[null,null,null,null,null,"Belarusian",17,null,2000,"Others"]
[null,null,null,null,null,"Belgian",18,null,1999,"Pharmaceuticals and Biotechnology"]
[null,null,null,null,null,"Belizean",19,null,1998,"Precision Engineering"]
[null,null,null,null,null,"Beninese",20,null,1997]
[null,null,null,null,null,"Bhutanese",21,null,1996]
[null,null,null,null,null,"Bolivian",22,null,1995]
[null,null,null,null,null,"Bosniak/ Bosnian",23,null,1994]
[null,null,null,null,null,"Brazilian",24,null,1993]
[null,null,null,null,null,"British",25,null,1992]
[null,null,null,null,null,"Bruneian",26,null,1991]
[null,null,null,null,null,"Bulgarian",27,null,1990]
[null,null,null,null,null,"Burkinabe",28,null,1989]
[null,null,null,null,null,"Burundian",29,null,1988]
[null,null,null,null,null,"Cambodian",30,null,1987]
[null,null,null,null,null,"Cameroonian",31,null,1986]
[null,null,null,null,null,"Canadian",null,null,1985]
[null,null,null,null,null,"Cape Verdean",null,null,1984]
[null,null,null,null,null,"Chadian",null,null,1983]
[null,null,null,null,null,"Chilean",null,null,1982]
[null,null,null,null,null,"Chinese",null,null,1981]
[null,null,null,null,null,"Colombian",null,null,1980]
[null,null,null,null,null,"Comorian",null,null,1979]
[null,null,null,null,null,"Congolese",null,null,1978]
[null,null,null,null,null,"CostRican",null,null,1977]
[null,null,null,null,null,"Croatian",null,null,1976]
[null,null,null,null,null,"Cuban",null,null,1975]
[null,null,null,null,null,"Cypriot",null,null,1974]
[null,null,null,null,null,"Czech",null,null,1973]
[null,null,null,null,null,"Dane",null,null,1972]
[null,null,null,null,null,"Djiboutian",null,null,1971]
[null,null,null,null,null,"Dominican",null,null,1970]
[null,null,null,null,null,"Dutch",null,null,1969]
[null,null,null,null,null,"Ecuadorian",null,null,1968]
[null,null,null,null,null,"Egyptian",null,null,1967]
[null,null,null,null,null,"Emirati",null,null,1966]
[null,null,null,null,null,"Equatorial Guinean",null,null,1965]
[null,null,null,null,null,"Eritrean",null,null,1964]
[null,null,null,null,null,"Estonian",null,null,1963]
[null,null,null,null,null,"Ethiopian",null,null,1962]
[null,null,null,null,null,"Fijian",null,null,1961]
[null,null,null,null,null,"Filipino",null,null,1960]
[null,null,null,null,null,"Finn",null,null,1959]
[null,null,null,null,null,"French",null,null,1958]
[null,null,null,null,null,"Gabonese",null,null,1957]
[null,null,null,null,null,"Gambian",null,null,1956]
[null,null,null,null,null,"Georgian",null,null,1955]
[null,null,null,null,null,"German",null,null,1954]
[null,null,null,null,null,"Ghanaian",null,null,1953]
[null,null,null,null,null,"Greek",null,null,1952]
[null,null,null,null,null,"Greenland",null,null,1951]
[null,null,null,null,null,"Grenadian",null,null,1950]
[null,null,null,null,null,"Guatemalan",null,null,1949]
[null,null,null,null,null,"Guinean",null,null,1948]
[null,null,null,null,null,"Guyanese",null,null,1947]
[null,null,null,null,null,"Haitian",null,null,1946]
[null,null,null,null,null,"Honduran"]
[null,null,null,null,null,"Hong Konger"]
[null,null,null,null,null,"Hungarian"]
[null,null,null,null,null,"Icelander"]
[null,null,null,null,null,"Indian"]
[null,null,null,null,null,"Indonesian"]
[null,null,null,null,null,"Iranian"]
[null,null,null,null,null,"Iraqi "]
[null,null,null,null,null,"Irish"]
[null,null,null,null,null,"Israeli"]
[null,null,null,null,null,"Italian"]
[null,null,null,null,null,"Ivorian"]
[null,null,null,null,null,"Jamaican"]
[null,null,null,null,null,"Japanese"]
[null,null,null,null,null,"Jordanian"]
[null,null,null,null,null,"Kazakhstani"]
[null,null,null,null,null,"Kenyan"]
[null,null,null,null,null,"Kiribati"]
[null,null,null,null,null,"Kittitian/ Nevisian"]
[null,null,null,null,null,"Kosovar"]
[null,null,null,null,null,"Kuwaiti"]
[null,null,null,null,null,"Kyrgyzstani"]
[null,null,null,null,null,"Laotian"]
[null,null,null,null,null,"Latvian"]
[null,null,null,null,null,"Lebanese"]
[null,null,null,null,null,"Liberian"]
[null,null,null,null,null,"Libyan"]
[null,null,null,null,null,"Liechtensteiner"]
[null,null,null,null,null,"Lithuanian"]
[null,null,null,null,null,"Luxembourger"]
[null,null,null,null,null,"Macedonian"]
[null,null,null,null,null,"Madagascan"]
[null,null,null,null,null,"Malawi"]
[null,null,null,null,null,"Malaysian"]
[null,null,null,null,null,"Maldivian"]
[null,null,null,null,null,"Malian"]
[null,null,null,null,null,"Maltese"]
[null,null,null,null,null,"Marshallese"]
[null,null,null,null,null,"Mauritanian"]
[null,null,null,null,null,"Mauritian"]
[null,null,null,null,null,"Mexican"]
[null,null,null,null,null,"Micronesian"]
[null,null,null,null,null,"Moldovan"]
[null,null,null,null,null,"Monacan"]
[null,null,null,null,null,"Mongolian"]
[null,null,null,null,null,"Montenegrin"]
[null,null,null,null,null,"Moroccan"]
[null,null,null,null,null,"Mozambican"]
[null,null,null,null,null,"Myanmese"]
[null,null,null,null,null,"Namibian"]
[null,null,null,null,null,"Nauruan"]
[null,null,null,null,null,"Nepalese"]
[null,null,null,null,null,"New Zealander"]
[null,null,null,null,null,"Nicaragua"]
[null,null,null,null,null,"Nigerian"]
[null,null,null,null,null,"North Korean"]
[null,null,null,null,null,"Norwegian"]
[null,null,null,null,null,"Omani"]
[null,null,null,null,null,"Others"]
[null,null,null,null,null,"Pakistani"]
[null,null,null,null,null,"Palauan"]
[null,null,null,null,null,"Palestinian"]
[null,null,null,null,null,"Panamanian"]
[null,null,null,null,null,"Paraguayan"]
[null,null,null,null,null,"Peruvian"]
[null,null,null,null,null,"Pole"]
[null,null,null,null,null,"Portuguese"]
[null,null,null,null,null,"Qatari"]
[null,null,null,null,null,"Romanian"]
[null,null,null,null,null,"Russian"]
[null,null,null,null,null,"Rwandan"]
[null,null,null,null,null,"Salvadorean"]
[null,null,null,null,null,"Sammarinese"]
[null,null,null,null,null,"Samoan"]
[null,null,null,null,null,"Sao Tomean"]
[null,null,null,null,null,"Saudi"]
[null,null,null,null,null,"Senegalese"]
[null,null,null,null,null,"Serb or Serbian"]
[null,null,null,null,null,"Seychellois"]
[null,null,null,null,null,"SierrLeonian"]
[null,null,null,null,null,"Singaporean"]
[null,null,null,null,null,"Slovak"]
[null,null,null,null,null,"Slovene or Slovenian"]
[null,null,null,null,null,"Solomon Islander"]
[null,null,null,null,null,"Somali"]
[null,null,null,null,null,"South African"]
[null,null,null,null,null,"South Korean"]
[null,null,null,null,null,"Spanish"]
[null,null,null,null,null,"Sri Lankan"]
[null,null,null,null,null,"St. Lucian"]
[null,null,null,null,null,"Sudanese"]
[null,null,null,null,null,"Surinamese"]
[null,null,null,null,null,"Swazi"]
[null,null,null,null,null,"Swede"]
[null,null,null,null,null,"Swiss"]
[null,null,null,null,null,"Syrian"]
[null,null,null,null,null,"Taiwanese"]
[null,null,null,null,null,"Tajik"]
[null,null,null,null,null,"Tanzanian"]
[null,null,null,null,null,"Thai"]
[null,null,null,null,null,"Timorese"]
[null,null,null,null,null,"Togolese"]
[null,null,null,null,null,"Tongan"]
[null,null,null,null,null,"Trinidadian"]
[null,null,null,null,null,"Tswana"]
[null,null,null,null,null,"Tunisian"]
[null,null,null,null,null,"Turk"]
[null,null,null,null,null,"Turkoman"]
[null,null,null,null,null,"Tuvaluan"]
[null,null,null,null,null,"Ugandan"]
[null,null,null,null,null,"Ukrainian"]
[null,null,null,null,null,"Uruguayan"]
[null,null,null,null,null,"Uzbek"]
[null,null,null,null,null,"Vanuatuan"]
[null,null,null,null,null,"Venezuelan"]
[null,null,null,null,null,"Vietnamese"]
[null,null,null,null,null,"Vincentian"]
[null,null,null,null,null,"Yemeni"]
[null,null,null,null,null,"Zambian"]
[null,null,null,null,null,"Zimbabwean"]